Cogmind - Beta 14 @@@ ROGUE MODE // 2024.08.14 @ 00:54:00 Player: Zeia Result: Destroyed by I9-WUD(R) with Subdweller Machine Gun Performance ------------- Evolutions (0) 0 Regions Visited (2) 400 Robots Destroyed (25) 125 Value Destroyed (649) 649 Prototype IDs (0) 0 Alien Tech Used (0) 0 Bonus (0) 0 TOTAL SCORE: 1174 Bonus ------- None Cogmind --------- Core Integrity 0/250 Matter 292/300 Energy 100/100 System Corruption 0% Temperature Cool (0) Movement Rolling (105) Ox1 Location -10/Subcaves Parts ------- > --- POWER (1) -------- (None) > --- PROPULSION (2) --- Armored Wheel > --- UTILITY (2) ------ Large Storage Unit > --- WEAPON (2) ------- (None) > --- INVENTORY (15) --- Light Treads Light Treads Compact Wheel Huge Storage Unit Medium Matter Pod (100) Subdweller Optics Scrap Shield Scrap Shield Fragment (49) Scrap Shield Fragment (49) Scrap Shield Fragment (41) Scrap Shield Fragment (40) Peak State ------------ > --- POWER ------------ Subdweller Power Source > --- PROPULSION ------- Armored Wheel Armored Wheel > --- UTILITY ---------- Large Storage Unit Improved Terrain Scanner > --- WEAPON ----------- Subdweller Machine Gun Subdweller Shrapnel Launcher > --- INVENTORY -------- Subdweller Power Source Light Treads Light Treads Compact Wheel Compact Wheel Huge Storage Unit Medium Matter Pod Subdweller Optics Scrap Shield Scrap Shield Fragment Scrap Shield Fragment Scrap Shield Fragment [Rating: 16] Favorites ----------- Power Light Ion Engine Engine Light Ion Engine Propulsion Armored Wheel Treads Light Treads Wheel Armored Wheel Utility Large Storage Unit Device Seismic Detector Storage Large Storage Unit Protection Light Armor Plating Weapon Light Assault Rifle Energy Gun Medium Laser Ballistic Gun Light Assault Rifle Launcher Subdweller Shrapnel Launcher Build | -11 -10 -10 ------- Run | Yrd Mat Sub Slots Evolved . | . . . Power . | . . . Propulsion . | . . . Utility . | . . . Weapon . | . . . Parts Attached 31 | 7 11 13 Power 5 | 1 1 3 Engine 5 | 1 1 3 Core . | . . . Reactor . | . . . Propulsion 7 | 2 2 3 Treads 2 | 2 . . Leg . | . . . Wheel 5 | . 2 3 Hover . | . . . Flight . | . . . Utility 8 | 2 4 2 Device 5 | 1 2 2 Storage 2 | 1 1 . Processor . | . . . Hackware . | . . . Protection 1 | . 1 . Artifact . | . . . Weapon 11 | 2 4 5 Energy Gun 3 | 2 . 1 Energy Cannon . | . . . Ballistic Gun 7 | . 4 3 Ballistic Cannon . | . . . Launcher 1 | . . 1 Special Weapon . | . . . Impact Weapon . | . . . Slashing Weapon . | . . . Piercing Weapon . | . . . Special Melee Weapon . | . . . Unidentified Prototypes . | . . . Parts Lost 19 | . 1 18 Power 4 | . . 4 Propulsion 4 | . . 4 Utility 3 | . . 3 Weapon 8 | . 1 7 Highest Loss Streak 7 | . 1 7 To Critical Strikes . | . . . Average Slot Usage (%) 98 | . 99 96 Engine 13 | . 14 13 Treads 9 | . 17 . Wheel 18 | . 10 27 Device 10 | . 12 7 Storage 14 | . 14 14 Protection 3 | . 1 5 Energy Gun 4 | . 8 . Ballistic Gun 20 | . 19 21 Launcher 2 | . . 5 Peak Build Rating 16 | 7 10 16 Average Rating 10 | 3 8 12 On Entrance 5 | . 7 10 Naked Turns . | . . . Heaviest Build 38 | 13 28 38 Greatest Support 40 | 40 40 28 Greatest Overweight (x) 8 | . 8 2 Average Overweight (x) . | . . 1 Largest Inventory Capacity 15 | 8 15 15 Average Capacity 12 | 7 11 15 Most Carried 15 | 8 15 15 Average Carried 11 | 4 8 14 Final Capacity 15 | 8 15 15 Final Carried 15 | 7 15 12 Class Distribution -------------------- 100% | Mutant Dominant Class ---------------- Mutant | -10/Materials Mutant | -10/Subcaves Resources | -11 -10 -10 ----------- Run | Yrd Mat Sub Matter Collected 704 | 135 400 169 Remotely . | . . . Salvage Created 696 | 23 424 249 Parts 44 | 4 26 14 Haulers Intercepted . | . . . Recyclers Shooed . | . . . Parts Field Recycled . | . . . Retrieved Matter . | . . . Parts Self-Destructed 4 | . . 4 Prevented . | . . . Kills | -11 -10 -10 ------- Run | Yrd Mat Sub Combat Hostiles Destroyed 23 | . 15 8 Guns 18 | . 14 4 AOE 5 | . 1 4 Classes Destroyed 5 | 1 3 1 Builder 1 | . 1 . Tunneler 1 | 1 . . Swarmer 9 | . 9 . Grunt 6 | . 6 . Subdweller 8 | . . 8 Best Kill Streak 4 | 1 4 2 Combat Bots Only 4 | . 4 2 Max Kills in Single Turn 2 | 1 2 2 Gunslinging . | . . . Exploded 2 | . 1 2 Melee . | . . . Uniques/NPCs Destroyed . | . . . Combat | -11 -10 -10 -------- Run | Yrd Mat Sub Hostile Shots Fired 115 | . 55 60 Missed 27 | . 16 11 Damage Taken 1902 | . 480 1422 Core 270 | . 78 192 Absorbed by Shields . | . . . Core Remaining (%) 100 | 100 . . Volleys Fired 76 | 1 39 36 Largest 2 | 2 2 2 Hottest 90 | 90 90 80 Shots Fired 135 | 2 78 55 Gun 130 | 2 78 50 Cannon . | . . . Launcher 5 | . . 5 Special . | . . . Kinetic 111 | . 60 51 Thermal 10 | 1 9 . Explosive . | . . . Electromagnetic 14 | 1 9 4 Robot Hit Streak 12 | 1 9 12 Robot Miss Streak 3 | . 3 2 Penetration Max . | . . . Secondary Targets . | . . . Shots Hit Robots 94 | 1 47 46 Core Hits 48 | 1 25 22 Critical Kills 1 | . 1 . Critical Parts Destroyed . | . . . Critical Strikes 1 | . 1 . Destroy 1 | . 1 . Melee Attacks . | . . . Impact . | . . . Slashing . | . . . Piercing . | . . . Sneak Attacks . | . . . Combat Hostiles . | . . . Follow-up Attacks . | . . . Damage Inflicted 1647 | 13 468 1166 Guns 960 | 13 422 525 Cannons . | . . . Explosions 660 | . 46 614 Melee . | . . . Ramming 27 | . . 27 Kinetic 1278 | . 318 960 Thermal 212 | 13 72 127 Explosive . | . . . Electromagnetic 130 | . 78 52 Impact . | . . . Slashing . | . . . Piercing . | . . . Highest Corruption . | . . . Average Corruption . | . . . Corruption Purged . | . . . Corruption Blocked . | . . . Overload Shots . | . . . Overflow Damage 45 | . . 45 Projectiles . | . . . Explosions 45 | . . 45 Melee . | . . . Knockbacks . | . . . Impact . | . . . Kinetic . | . . . Secondary . | . . . Self-Inflicted Damage 227 | . 38 189 Shots 5 | . 1 4 Rammed 12 | . . 12 Targets Rammed 12 | . . 12 Kicked . | . . . Crushed . | . . . Highest Temperature 90 | 30 90 . Average Temperature 26 | 18 26 . Received Heat Transfer 243 | . 147 96 Siege Activations . | . . . Robots Corrupted . | . . . Combat Hostiles . | . . . Parts Fried . | . . . Impact Corruptions . | . . . Robots Melted . | . . . Combat Hostiles . | . . . Parts Melted . | . . . Heat Transferred 161 | 37 74 50 Parts Sabotaged . | . . . Parts Stolen . | . . . Parts Stripped . | . . . Power Chain Reactions 2 | . 1 1 Alert | -11 -10 -10 ------- Run | Yrd Mat Sub Peak Influence 306 | 5 306 . Initial 3 | . 3 . Average 159 | 1 171 . Maximum Alert Level 1 | . 1 . Low Security (%) 66 | 100 63 . Level 1 33 | . 36 . Level 2 . | . . . Level 3 . | . . . Level 4 . | . . . Level 5 . | . . . High Security . | . . . Max Security . | . . . Squads Dispatched 3 | . 3 . Investigation . | . . . Extermination . | . . . Reinforcement 3 | . 3 . Assault . | . . . Garrison . | . . . Intercept . | . . . Searches Triggered . | . . . Construction Impeded . | . . . Haulers Reinforced . | . . . Active Scanning Responses . | . . . Cargo Convoy Interrupts . | . . . Stealth | -11 -10 -10 --------- Run | Yrd Mat Sub Distress Signals 5 | . 5 . Communications Jammed . | . . . Distress Signals . | . . . Times Spotted 39 | . 30 9 Peak Tracking Total 5 | . 5 2 Tactical Retreats 5 | . 5 . Traps | -11 -10 -10 ------- Run | Yrd Mat Sub Traps Triggered 6 | . 2 4 Indirectly . | . . . Trap Hack Attempts . | . . . Triggered . | . . . Disarmed . | . . . Reprogrammed . | . . . Reused . | . . . Traps Extracted . | . . . Installed . | . . . Triggered . | . . . Machines | -11 -10 -10 ---------- Run | Yrd Mat Sub Machines Disabled 1 | . 1 . Max in Single Turn 1 | . 1 . Machines Repaired . | . . . Machines Dismantled . | . . . Machines Sabotaged . | . . . Overloaded Fab Kills . | . . . Hacking | -11 -10 -10 --------- Run | Yrd Mat Sub Machines Accessed 4 | . 4 . Terminals 4 | . 4 . Fabricators . | . . . Repair Stations . | . . . Recycling Units . | . . . Scanalyzers . | . . . Garrison Access . | . . . Total Hacks 8 | . 8 . Successful 2 | . 2 . Failed 6 | . 6 . Catastrophic 1 | . 1 . Database Lockouts . | . . . Manual 6 | . 6 . Terminals 8 | . 8 . Fabricators . | . . . Repair Stations . | . . . Recycling Units . | . . . Scanalyzers . | . . . Garrison Access . | . . . Terminal Hacks . | . . . Fabricator Hacks . | . . . Repair Station Hacks . | . . . Recycling Unit Hacks . | . . . Scanalyzer . | . . . Garrison Access Hacks . | . . . Unauthorized Hacks 2 | . 2 . Terminals 2 | . 2 . Botnet 2 | . 2 . Fabricators . | . . . Repair Stations . | . . . Recycling Units . | . . . Scanalyzers . | . . . Garrison Access . | . . . Data Cores Recovered . | . . . Used . | . . . Hacking Detections 4 | . 4 . Full Trace Events . | . . . Feedback Events . | . . . Feedback Blocked . | . . . Robot Schematics Acquired . | . . . Robots Built . | . . . Authchips . | . . . Time . | . . . Total Robot Build Rating . | . . . Part Schematics Acquired . | . . . Parts Built . | . . . Authchips . | . . . Time . | . . . Total Part Build Rating . | . . . Parts Repaired . | . . . Time . | . . . Parts Recycled . | . . . Recycled Matter . | . . . Retrieved Matter . | . . . Retrieved Components . | . . . Parts Scanalyzed . | . . . Part Schematics Acquired . | . . . Parts Damaged . | . . . Bothacking | -11 -10 -10 ------------ Run | Yrd Mat Sub Used RIF Installer . | . . . Robots Hacked . | . . . Non-combat . | . . . Combat . | . . . Robot Hacks Applied . | . . . Relay Couplers Released . | . . . Fabnet Peak Effective % . | . . . Robots Rewired . | . . . Allies Hacked . | . . . Hacks Repelled . | . . . Allies | -11 -10 -10 -------- Run | Yrd Mat Sub Total Allies . | . . . Largest Group . | . . . Highest-Rated Group . | . . . Highest-Rated Ally . | . . . Total Orders . | . . . Ally Attacks . | . . . Total Damage . | . . . Kills . | . . . Allies Corrupted . | . . . Allies Melted . | . . . Intel | -11 -10 -10 ------- Run | Yrd Mat Sub Robot Analysis Total . | . . . Derelict Logs Recovered 2 | . . 2 Drone Launches . | . . . Drone Recoveries . | . . . Exploration | -11 -10 -10 ------------- Run | Yrd Mat Sub Turns Passed 2229 | 88 1127 1014 Spaces Moved 1542 | 45 696 801 Core 6 | 4 2 . Treads 394 | 41 353 . Legs . | . . . Wheels 1142 | . 341 801 Hover . | . . . Flight . | . . . Fastest Speed 50 | 50 90 105 Average Speed 119 | 150 133 105 Slowest Speed 450 | 160 450 120 Overloaded Moves . | . . . Propulsion Burnouts . | . . . Robots Hopped . | . . . Cave-ins Triggered . | . . . Exploration Rate (%) 49 | 4 94 51 Regions Visited 2 Branch Regions 1 Pre-discovered Areas 2 | . . 2 Known Exits Taken . | . . . Unknown Exits Taken 2 | 1 1 . Scrap Searched 5 | . . 5 Spaces Dug . | . . . Terrain Destroyed 48 | . 2 46 Melee . | . . . Projectile . | . . . AOE 48 | . 2 46 Terrain Rammed . | . . . Walls Destroyed . | . . . Machines Disabled . | . . . Actions | -11 -10 -10 --------- Run | Yrd Mat Sub Total 1809 | 61 828 920 Wait 99 | . 58 41 Move 1540 | 44 695 801 Hop . | . . . Pick Up 32 | 9 11 12 Fast Attach 14 | 5 7 2 Attach 15 | 2 2 11 Detach 5 | . 5 . Swap 2 | . 2 . Drop 14 | . 9 5 Fire 76 | 1 39 36 Melee . | . . . Ram 12 | . . 12 Kick . | . . . Crush . | . . . Escape Stasis . | . . . Rewire . | . . . Trap . | . . . Miscellaneous . | . . . Route ------- -11/Scrapyard -10/Materials (discovered 6 exits: [*Mat x3] / [*Min x2] / [*Sub]) -10/Subcaves (discovered 1 exit: [*Mat]) History --------- Turn | Location | Event 13 | -11/Scrapyard | Discovered new exit (range 15) 89 | -11/Scrapyard | Entered Materials 304 | -10/Materials | Build established: Mutant 589 | -10/Materials | Derelicts attacked the area 650 | -10/Materials | Discovered new exit (range 14) 877 | -10/Materials | Discovered new exit (range 10) 886 | -10/Materials | Discovered new exit (range 8) 1033 | -10/Materials | Discovered new exit (range 10) 1086 | -10/Materials | Discovered new exit (range 13) 1207 | -10/Materials | Discovered new exit (range 9) 1216 | -10/Materials | Entered Subcaves 1287 | -10/Subcaves | Discovered new exit (range 15) 1297 | -10/Subcaves | Learned 2 Materials zone layouts 1603 | -10/Subcaves | Shifting Twisted Machinery released Sub. Monowheel 1606 | -10/Subcaves | Shifting Twisted Machinery released Sub. Power Source 1638 | -10/Subcaves | Disturbed a concealed Subdweller 1754 | -10/Subcaves | Core integrity fell below 50% 1842 | -10/Subcaves | Lost 7 parts (1p1n1u4w) 1857 | -10/Subcaves | Learned location of Zion (-7) 1857 | -10/Subcaves | Met a Zionite searching for "candidates" 1991 | -10/Subcaves | Shifting Twisted Machinery released Sub. Optics 1992 | -10/Subcaves | Shifting Twisted Machinery released Battle Rifle 2209 | -10/Subcaves | Core integrity fell below 20% 2230 | -10/Subcaves | Destroyed by I9-WUD(R) with Subdweller Machine Gun Last Messages --------------- 02122_ Sub. Power Source destroyed. 02126_ Destroyed Scrap Shield. 02126_ Arm. Wheel destroyed. 02134_ ON-XTD(R) destroyed. 02144_ Acquired Scrap Shield Fragment. 02190_ Sub. Shrapnel Launcher destroyed. 02206_ Sub. Machine Gun shoots sparks and powers down. 02212_ Sub. Power Source destroyed. 02213_ Chain reaction triggered in Sub. Power Source. 02213_ CB-OIM(R) destroyed. 02213_ Com. Wheel destroyed. 02213_ Destroyed Com. Wheel. 02213_ Riot Gun destroyed. 02213_ Destroyed Riot Gun. 02215_ Acquired 46 matter. 02216_ Slammed into I9-WUD(R). 02222_ Broken Sub. Machine Gun destroyed. 02222_ Slammed into I9-WUD(R). 02224_ Imp. Terrain Scanner destroyed. 02225_ Slammed into I9-WUD(R). Map ----- +----------------------------------------------------+ | ?????????????????????????????????????????????????? | | ?????????????????#????####???????????????????????? | | ???????????????????#?## #???????????????????????? | | ??##????????????????## #????#??????????????????? | | ? ###?????????????? ####????????????????????? | | ??????????????? ##???????????????????? | | ???????? ??????? "" #???????????????????? | | #?????????? #??????# """ #????????????????????? | | #??????????????????##"" ###?????#?????????????? | | #??????????#???#####"" ##?????????????????????? | | #??????????????# "" ##?####?????????????????? | | #??????????????# ###"""##????????????????? | | #### ??????##### " ""##??????#????????? | | ????????## ; ; """" ??????????????? | | #??????### " "" ??????????????? | | ##?#??#???# ####""??????????????? | | #??#??#????##; #????????? ?????????? | | #???????####; #####???? ??????????? | | ## #?????### #" ##??????????????? | | ##?????##### ##?????????????? | | ? #??##### " #?????????????? | | #?## " " #?????????????? | | ??# #### #?????????????? | | ### #?## ### #?????????? | | ### ### #### R ??? | | # ###?### #### @ ??? | | ?? ###?## ### ;# # # ??? | | ??? ## ## ## #?# ;## ### ##?###????????? | | ????### ####?# !; ##### ###?????????????? | | ?????# ###### ;"#??# #???????????????? | | ##???# ### #### ####?????? ?????? | | ##??## ## ###??????????? | | ##??#### "" #???????????? | | ##????## " "" ###????????????? | | ####### """" ## ####??????????????? | | ## ""######### ##????????????????? | | % "#???????? #????????????????? | | #????????? ???????????????? | | ## #????????? ?????????????? | | #### ## #??????"?##?## ???????????? | | # #??# #? """"" ""?????????#? #?????????? | | # ## #??# """"" ""???????????? ??????????? | | # ###?? """"##"""?????????????? ??????????? | | # #??## #####?????????????????????????????? | | # ###?### ##?????????????????????????????????? | | #???####??????????????????????????????????? | | ##??#??????????????????????????????????????? | | ##??????????????????????????????????????????? | | #???????????????????????????????????????????? | | ###???????????????????????????????????????????? | +----------------------------------------------------+ Best States ------------- Heat Dissipation 25 Energy Generation 15 Energy Capacity 200 Matter Stores 300 Matter Capacity 300 Sight Range 21 Terrain Scan Range 16 Terrain Scan Density 10 Armor Coverage 150 Evasion (%) 40 Recoil Reduction 2 Item Schematics ----------------- None Robot Schematics ------------------ None Fabricated ------------ Nothing Alien Tech Used ----------------- None Achievements -------------- None Challenges ------------ None Game ------ Seed NodeInsulationMantle Manual? 0 Play Time 00:20:46 Cumulative 36.9 hours Start 2024.08.14 @ 00:33:57 End 2024.08.14 @ 00:54:00 Sessions 1 Manual Loads 0 Difficulty Rogue Special Mode None Game No. 29 Rogue 29 Adventurer 0 Explorer 0 Win Type - Total 0 Types 0/0/0/0/0/0/0/0/0 Lore% 32 Gallery% 33 Achievement% 28 Wizard Run 0 Options --------- Layout 1 ASCII 0 Keyboard 1 Movement Vi Keybinds 0 Fullscreen 2 Font 20/SmallcapsGlow Map View 64x42 Zoom Use 0% Tactical HUD 1 Map Filters NONE Filters NONE Steam 1 RUN: 8cb88352-013e-48c9-8c4c-e581ac79a95b